[Event "44th Chess Olympiad Open 2022"]
[Site "Chennai"]
[Date "2022.07.31"]
[Round "3.24"]
[White "Wong, Yinn Long"]
[Black "Brkic, Ante"]
[Result "0-1"]
[WhiteElo "2381"]
[BlackElo "2611"]
[Annotator "RC"]
[PlyCount "138"]
[EventDate "2022.??.??"]
[TimeControl "60"]

1. e4 {[%emt 0:00:11]} c5 {[%emt 0:00:07]} 2. Nf3 {[%emt 0:00:13]} d6 {[%emt 0:
00:00]} 3. Nc3 {[%emt 0:00:43]} Nf6 {[%emt 0:00:30]} 4. e5 {[%emt 0:00:13]}
dxe5 {[%emt 0:00:10]} 5. Nxe5 {[%emt 0:00:07]} Bd7 {[%emt 0:05:22]} 6. g3 {
[%emt 0:11:57]} Nc6 {[%emt 0:00:09]} 7. Nxd7 {[%emt 0:00:19]} Qxd7 {[%emt 0:00:
00]} 8. Bg2 {[%emt 0:01:51]} e6 {[%emt 0:00:31]} 9. d3 {[%emt 0:00:39]} Be7 {
[%emt 0:00:52]} 10. O-O {[%emt 0:00:48]} O-O {[%emt 0:00:06]} 11. Re1 {[%emt 0:
00:00]} Rac8 {[%emt 0:00:58]} 12. b3 {[%emt 0:01:56]} Rfd8 {[%emt 0:02:40]} 13.
Bb2 {[%emt 0:00:46]} Nd4 {[%emt 0:11:19]} 14. a4 {[%emt 0:04:56]} b6 {[%emt 0:
00:00]} 15. Nb5 {[%emt 0:14:05]} Ne8 {[%emt 0:14:39]} 16. Nc3 {[%emt 0:09:48]}
Nd6 {[%emt 0:02:01]} 17. Rb1 {[%emt 0:05:40]} Bf6 {[%emt 0:05:53]} 18. Ne4 {
[%emt 0:01:13]} Nxe4 {[%emt 0:04:54]} 19. Bxe4 {[%emt 0:00:11]} a6 {[%emt 0:00:
00]} 20. Kg2 {[%emt 0:02:39]} g6 {[%emt 0:05:38]} 21. Bxd4 {[%emt 0:06:53]}
Bxd4 {[%emt 0:04:32]} 22. f4 {[%emt 0:05:45]} b5 {[%emt 0:00:49]} 23. axb5 {
[%emt 0:00:07]} axb5 {[%emt 0:00:01]} 24. Bf3 {[%emt 0:07:19]} Rc7 {[%emt 0:00:
00]} 25. Qe2 {[%emt 0:04:40]} Bc3 {[%emt 0:01:37]} 26. Rf1 {[%emt 0:03:36]} Ra7
{[%emt 0:03:50]} 27. Qe4 {[%emt 0:01:55]} Ra2 {[%emt 0:03:58]} 28. Rf2 {
[%emt 0:00:35]} Qc7 {[%emt 0:00:41]} 29. Qc6 {[%emt 0:02:15]} Qa5 {[%emt 0:00:
00]} 30. Re2 {[%emt 0:05:13]} Bd4 {[%emt 0:00:28]} 31. Kh3 {[%emt 0:01:05]} Ra1
{[%emt 0:17:40]} 32. Rh1 {[%emt 0:00:27]} Rxh1 {[%emt 0:01:54]} 33. Bxh1 {
[%emt 0:00:01]} h5 {[%emt 0:02:02]} 34. Qb7 {[%emt 0:01:10]} Qa1 {[%emt 0:00:
00]} 35. Bg2 {[%emt 0:00:48]} b4 {[%emt 0:01:30]} 36. Qc7 {[%emt 0:02:55]} Rf8
{[%emt 0:00:22]} 37. Qb7 {[%emt 0:00:04]} Qc1 {[%emt 0:01:30]} 38. Qf3 {
[%emt 0:00:43]} Kg7 {[%emt 0:00:25]} 39. Qf1 {[%emt 0:00:36]} Qb2 {[%emt 0:00:
00]} 40. Bc6 {[%emt 0:03:06]} Rc8 {[%emt 0:01:24]} 41. Qf3 {[%emt 0:05:27]} Rc7
{[%emt 0:02:05]} 42. Bb7 {[%emt 0:00:39]} Qa1 {[%emt 0:01:34]} 43. Qh1 {
[%emt 0:01:40]} Qa7 {[%emt 0:02:47]} 44. Bf3 {[%emt 0:00:55]} Qb8 {[%emt 0:00:
00]} 45. Re1 {[%emt 0:03:41]} Ra7 {[%emt 0:00:26]} 46. Qf1 {[%emt 0:02:12]} Ra2
{[%emt 0:00:17]} 47. Qg2 {[%emt 0:03:20]} Qc8 {[%emt 0:03:07]} 48. Bb7 {
[%emt 0:02:12]} Qd8 {[%emt 0:00:05]} 49. Bf3 {[%emt 0:01:46]} Qf6 {[%emt 0:00:
00]} 50. Qe2 {[%emt 0:01:10]} c4 {[%emt 0:01:07]} 51. dxc4 {[%emt 0:02:34]}
Qf5+ {[%emt 0:00:25]} 52. g4 {[%emt 0:00:07]} Qxf4 {[%emt 0:01:03]} 53. Kg2 {
[%emt 0:04:15]} hxg4 {[%emt 0:06:25]} 54. Bxg4 {[%emt 0:00:06]} Rxc2 {[%emt 0:
00:00]} 55. Qxc2 {[%emt 0:00:14]} Qxg4+ {[%emt 0:00:03]} 56. Kh1 {[%emt 0:00:
00]} Qf3+ {[%emt 0:00:09]} 57. Qg2 {[%emt 0:00:04]} Qxb3 {[%emt 0:00:03]} 58.
h4 {[%emt 0:03:55]} Qxc4 {[%emt 0:00:27]} 59. h5 {[%emt 0:00:17]} Qc5 {[%emt 0:
00:00]} 60. hxg6 {[%emt 0:02:10]} Qh5+ {[%emt 0:00:12]} 61. Qh2 {[%emt 0:00:03]
} Qf3+ {[%emt 0:00:52]} 62. Qg2 {[%emt 0:00:04]} Qh5+ {[%emt 0:00:06]} 63. Qh2
{[%emt 0:00:03]} Qxh2+ {[%emt 0:00:40]} 64. Kxh2 {[%emt 0:00:01]} Kxg6 {
[%emt 0:00:07]} 65. Rc1 {[%emt 0:00:16]} b3 {[%emt 0:00:41]} 66. Rc4 {[%emt 0:
00:00]} b2 {[%emt 0:00:29]} 67. Rb4 {[%emt 0:00:02]} Kf5 {[%emt 0:00:15]} 68.
Kg2 {[%emt 0:00:38]} Ke4 {[%emt 0:00:18]} 69. Rb3 {[%emt 0:00:02]} Bc3 {
[%emt 0:00:31]} 0-1

[Event "44th Chess Olympiad Open 2022"]
[Site "Chennai"]
[Date "2022.07.31"]
[Round "3.24"]
[White "Poh, Yu Tian"]
[Black "Bosiocic, Marin"]
[Result "0-1"]
[WhiteElo "2118"]
[BlackElo "2549"]
[Annotator "RC"]
[PlyCount "138"]
[EventDate "2022.??.??"]
[TimeControl "60"]

1. e4 {[%emt 0:00:03]} c5 {[%emt 0:00:08]} 2. Nf3 {[%emt 0:00:09]} Nc6 {
[%emt 0:00:13]} 3. d4 {[%emt 0:00:09]} cxd4 {[%emt 0:00:06]} 4. Nxd4 {[%emt 0:
00:00]} Nf6 {[%emt 0:00:09]} 5. Nc3 {[%emt 0:00:05]} e5 {[%emt 0:00:34]} 6.
Ndb5 {[%emt 0:00:11]} d6 {[%emt 0:00:16]} 7. Bg5 {[%emt 0:00:14]} a6 {[%emt 0:
00:00]} 8. Na3 {[%emt 0:00:05]} b5 {[%emt 0:00:47]} 9. Nd5 {[%emt 0:00:11]} Be7
{[%emt 0:00:00]} 10. Bxf6 {[%emt 0:00:18]} Bxf6 {[%emt 0:00:12]} 11. c3 {
[%emt 0:00:08]} Bg5 {[%emt 0:02:11]} 12. Nc2 {[%emt 0:00:29]} Rb8 {[%emt 0:00:
00]} 13. Be2 {[%emt 0:01:07]} O-O {[%emt 0:02:24]} 14. O-O {[%emt 0:00:32]} Be6
{[%emt 0:01:20]} 15. Ncb4 {[%emt 0:03:23]} Nxb4 {[%emt 0:06:12]} 16. Nxb4 {
[%emt 0:02:47]} Qb6 {[%emt 0:02:37]} 17. Nd5 {[%emt 0:03:32]} Qb7 {[%emt 0:00:
00]} 18. c4 {[%emt 0:08:12]} Rfc8 {[%emt 0:07:36]} 19. b3 {[%emt 0:01:44]} Bxd5
{[%emt 0:03:40]} 20. Qxd5 {[%emt 0:02:43]} Qxd5 {[%emt 0:00:37]} 21. exd5 {
[%emt 0:03:19]} Bd2 {[%emt 0:09:52]} 22. cxb5 {[%emt 0:06:09]} axb5 {[%emt 0:
00:00]} 23. a4 {[%emt 0:00:10]} bxa4 {[%emt 0:06:35]} 24. bxa4 {[%emt 0:00:15]}
Rb2 {[%emt 0:01:51]} 25. Rfb1 {[%emt 0:02:50]} Rxb1+ {[%emt 0:10:08]} 26. Rxb1
{[%emt 0:00:04]} g6 {[%emt 0:00:59]} 27. g3 {[%emt 0:06:03]} Rc2 {[%emt 0:00:
00]} 28. Bd1 {[%emt 0:03:42]} Rc5 {[%emt 0:01:47]} 29. Be2 {[%emt 0:02:57]} Rc2
{[%emt 0:04:04]} 30. Bd1 {[%emt 0:00:18]} Rc4 {[%emt 0:01:31]} 31. Bb3 {
[%emt 0:02:04]} Rc5 {[%emt 0:00:12]} 32. Rb2 {[%emt 0:02:11]} Rc1+ {[%emt 0:00:
00]} 33. Kg2 {[%emt 0:00:06]} Ba5 {[%emt 0:01:53]} 34. Rc2 {[%emt 0:01:52]} Ra1
{[%emt 0:02:53]} 35. Rc6 {[%emt 0:06:05]} Ra3 {[%emt 0:04:06]} 36. Rc8+ {
[%emt 0:09:18]} Kg7 {[%emt 0:00:09]} 37. Rb8 {[%emt 0:00:09]} e4 {[%emt 0:00:
00]} 38. Rb5 {[%emt 0:05:23]} Bc3 {[%emt 0:04:06]} 39. Bc2 {[%emt 0:20:40]} e3
{[%emt 0:00:47]} 40. Bd3 {[%emt 0:00:23]} Ra2 {[%emt 0:01:38]} 41. Kf3 {
[%emt 0:30:41]} exf2 {[%emt 0:30:36]} 42. Bf1 {[%emt 0:03:56]} Bd4 {[%emt 0:00:
00]} 43. a5 {[%emt 0:05:17]} h5 {[%emt 0:00:00]} 44. Kg2 {[%emt 0:00:00]} Ra1 {
[%emt 0:00:00]} 45. a6 {[%emt 0:00:00]} g5 {[%emt 0:00:00]} 46. Rb7 {[%emt 0:
00:00]} g4 {[%emt 0:00:00]} 47. Rd7 {[%emt 0:00:00]} Bc5 {[%emt 0:00:00]} 48.
Rb7 {[%emt 0:00:00]} Kg6 {[%emt 0:00:00]} 49. Rb1 {[%emt 0:00:00]} Ra3 {
[%emt 0:00:00]} 50. h4 {[%emt 0:00:00]} gxh3+ {[%emt 0:00:00]} 51. Kxh3 {
[%emt 0:00:00]} h4 {[%emt 0:00:00]} 52. Kxh4 {[%emt 0:00:00]} Re3 {[%emt 0:00:
00]} 53. Kh3 {[%emt 0:00:00]} Re1 {[%emt 0:00:00]} 54. Kg2 {[%emt 0:00:00]} f5
{[%emt 0:00:00]} 55. Rb8 {[%emt 0:00:00]} Kf6 {[%emt 0:00:00]} 56. Rf8+ {
[%emt 0:00:43]} Ke5 {[%emt 0:00:00]} 57. Rf7 {[%emt 0:00:15]} Ra1 {[%emt 0:00:
00]} 58. Rf8 {[%emt 0:00:55]} Ke4 {[%emt 0:00:00]} 59. Rf7 {[%emt 0:00:32]} Bd4
{[%emt 0:00:00]} 60. Rf8 {[%emt 0:00:36]} Ra5 {[%emt 0:00:00]} 61. Rb8 {
[%emt 0:02:25]} Ra3 {[%emt 0:01:29]} 62. Rf8 {[%emt 0:01:08]} Be5 {[%emt 0:00:
00]} 63. Kxf2 {[%emt 0:00:31]} Bxg3+ {[%emt 0:00:24]} 64. Kg2 {[%emt 0:03:05]}
Be5 {[%emt 0:00:37]} 65. Rb8 {[%emt 0:02:19]} Ra2+ {[%emt 0:02:40]} 66. Kg1 {
[%emt 0:00:21]} f4 {[%emt 0:00:54]} 67. Rb4+ {[%emt 0:00:38]} Bd4+ {[%emt 0:00:
00]} 68. Kh1 {[%emt 0:00:03]} Ra1 {[%emt 0:00:41]} 69. Kg2 {[%emt 0:00:50]} f3+
{[%emt 0:00:22]} 0-1

[Event "44th Chess Olympiad Open 2022"]
[Site "Chennai"]
[Date "2022.07.31"]
[Round "3.25"]
[White "Andersen, Mads"]
[Black "Miguel, Sergio"]
[Result "1-0"]
[WhiteElo "2587"]
[BlackElo "2274"]
[Annotator "RC"]
[PlyCount "83"]
[EventDate "2022.??.??"]
[TimeControl "60"]

1. e4 {[%emt 0:00:04]} e5 {[%emt 0:00:53]} 2. Nf3 {[%emt 0:00:09]} Nc6 {
[%emt 0:00:06]} 3. Bc4 {[%emt 0:00:07]} Nf6 {[%emt 0:00:14]} 4. d3 {[%emt 0:00:
00]} Bc5 {[%emt 0:00:06]} 5. c3 {[%emt 0:00:11]} d6 {[%emt 0:04:06]} 6. O-O {
[%emt 0:00:28]} a6 {[%emt 0:00:48]} 7. a4 {[%emt 0:00:29]} h6 {[%emt 0:01:02]}
8. Re1 {[%emt 0:01:30]} Ba7 {[%emt 0:00:34]} 9. Nbd2 {[%emt 0:01:32]} O-O {
[%emt 0:01:35]} 10. h3 {[%emt 0:00:29]} Re8 {[%emt 0:02:55]} 11. b4 {[%emt 0:
00:00]} Be6 {[%emt 0:01:16]} 12. Bxe6 {[%emt 0:00:14]} Rxe6 {[%emt 0:00:07]}
13. Bb2 {[%emt 0:01:28]} Qe8 {[%emt 0:06:01]} 14. Qb1 {[%emt 0:24:07]} Ne7 {
[%emt 0:03:45]} 15. d4 {[%emt 0:09:18]} Ng6 {[%emt 0:00:20]} 16. c4 {[%emt 0:
00:00]} a5 {[%emt 0:05:50]} 17. b5 {[%emt 0:08:56]} Nd7 {[%emt 0:05:30]} 18.
Nb3 {[%emt 0:08:15]} Nf4 {[%emt 0:02:18]} 19. Kh2 {[%emt 0:02:39]} Rf6 {
[%emt 0:01:42]} 20. Qc2 {[%emt 0:08:43]} Qe6 {[%emt 0:05:27]} 21. Re3 {[%emt 0:
00:00]} Qe7 {[%emt 0:09:43]} 22. c5 {[%emt 0:13:01]} Rg6 {[%emt 0:06:06]} 23.
g3 {[%emt 0:00:33]} exd4 {[%emt 0:02:20]} 24. Nbxd4 {[%emt 0:01:26]} Ne6 {
[%emt 0:03:19]} 25. Nf5 {[%emt 0:00:48]} Qd8 {[%emt 0:02:01]} 26. b6 {[%emt 0:
00:00]} cxb6 {[%emt 0:01:18]} 27. cxd6 {[%emt 0:00:08]} b5 {[%emt 0:00:38]} 28.
Re2 {[%emt 0:01:18]} bxa4 {[%emt 0:06:55]} 29. Ne7+ {[%emt 0:01:42]} Kh7 {
[%emt 0:00:11]} 30. e5 {[%emt 0:02:18]} b5 {[%emt 0:05:12]} 31. Qf5 {[%emt 0:
00:00]} Qe8 {[%emt 0:00:58]} 32. h4 {[%emt 0:00:46]} Kh8 {[%emt 0:00:49]} 33.
h5 {[%emt 0:00:46]} Rg5 {[%emt 0:00:14]} 34. Nxg5 {[%emt 0:00:08]} Nxg5 {
[%emt 0:02:43]} 35. Rc1 {[%emt 0:03:11]} b4 {[%emt 0:01:46]} 36. Rec2 {[%emt 0:
00:00]} Bb6 {[%emt 0:08:09]} 37. Rc8 {[%emt 0:00:46]} Rxc8 {[%emt 0:00:07]} 38.
Rxc8 {[%emt 0:00:06]} Bd8 {[%emt 0:00:09]} 39. Nc6 {[%emt 0:01:13]} Ne6 {
[%emt 0:00:18]} 40. Nxd8 {[%emt 0:01:08]} Nxd8 {[%emt 0:00:14]} 41. e6 {
[%emt 0:30:12]} fxe6 {[%emt 0:32:39]} 42. Qg6 {[%emt 0:00:07]} 1-0

[Event "44th Chess Olympiad Open 2022"]
[Site "Chennai"]
[Date "2022.07.31"]
[Round "3.25"]
[White "Rasmussen, Allan Stig"]
[Black "Lutuima, Amaro"]
[Result "1-0"]
[WhiteElo "2550"]
[BlackElo "2048"]
[Annotator "RC"]
[PlyCount "61"]
[EventDate "2022.??.??"]
[TimeControl "60"]

1. d4 {[%emt 0:00:04]} Nf6 {[%emt 0:02:24]} 2. c4 {[%emt 0:00:24]} e6 {[%emt 0:
00:00]} 3. Nf3 {[%emt 0:01:38]} d5 {[%emt 0:00:50]} 4. g3 {[%emt 0:01:26]} Be7
{[%emt 0:00:11]} 5. Bg2 {[%emt 0:00:08]} O-O {[%emt 0:00:07]} 6. Qc2 {[%emt 0:
00:00]} b6 {[%emt 0:02:34]} 7. O-O {[%emt 0:03:41]} Bb7 {[%emt 0:02:33]} 8.
cxd5 {[%emt 0:02:38]} exd5 {[%emt 0:00:37]} 9. Bf4 {[%emt 0:01:00]} Na6 {
[%emt 0:01:31]} 10. Nc3 {[%emt 0:03:28]} c6 {[%emt 0:06:53]} 11. Ne5 {[%emt 0:
00:00]} Nc7 {[%emt 0:05:54]} 12. Qa4 {[%emt 0:12:31]} b5 {[%emt 0:04:34]} 13.
Qd1 {[%emt 0:07:11]} Ne6 {[%emt 0:02:43]} 14. Be3 {[%emt 0:00:53]} Qb6 {
[%emt 0:02:47]} 15. a4 {[%emt 0:07:56]} b4 {[%emt 0:04:52]} 16. a5 {[%emt 0:00:
00]} Qa6 {[%emt 0:00:07]} 17. Na4 {[%emt 0:05:19]} Qxa5 {[%emt 0:03:45]} 18.
Nc5 {[%emt 0:03:35]} Qc7 {[%emt 0:03:02]} 19. Nxe6 {[%emt 0:01:32]} fxe6 {
[%emt 0:00:04]} 20. Bh3 {[%emt 0:00:33]} Bc8 {[%emt 0:01:04]} 21. Qa4 {[%emt 0:
00:00]} Bd7 {[%emt 0:05:43]} 22. Qa5 {[%emt 0:01:48]} Qb7 {[%emt 0:03:57]} 23.
Qa6 {[%emt 0:01:39]} Qc7 {[%emt 0:00:44]} 24. Rfc1 {[%emt 0:00:11]} Rfc8 {
[%emt 0:00:02]} 25. Bxe6+ {[%emt 0:02:28]} Bxe6 {[%emt 0:00:31]} 26. Rxc6 {
[%emt 0:00:07]} Qd8 {[%emt 0:09:35]} 27. Rxe6 {[%emt 0:00:10]} Rc7 {[%emt 0:00:
00]} 28. Nc6 {[%emt 0:03:32]} Qf8 {[%emt 0:00:14]} 29. Bf4 {[%emt 0:01:42]}
Rxc6 {[%emt 0:11:08]} 30. Qxc6 {[%emt 0:01:11]} Rc8 {[%emt 0:01:32]} 31. Qb7 {
[%emt 0:00:21]} 1-0

[Event "44th Chess Olympiad Open 2022"]
[Site "Chennai"]
[Date "2022.07.31"]
[Round "3.25"]
[White "Silva, David"]
[Black "Bjerre, Jonas Buhl"]
[Result "0-1"]
[WhiteElo "2315"]
[BlackElo "2608"]
[Annotator "RC"]
[PlyCount "100"]
[EventDate "2022.??.??"]
[TimeControl "60"]

1. e4 {[%emt 0:04:50]} c5 {[%emt 0:00:17]} 2. c3 {[%emt 0:00:15]} Nf6 {[%emt 0:
00:00]} 3. e5 {[%emt 0:02:00]} Nd5 {[%emt 0:00:12]} 4. Nf3 {[%emt 0:00:17]} e6
{[%emt 0:06:04]} 5. d4 {[%emt 0:00:15]} cxd4 {[%emt 0:00:05]} 6. cxd4 {[%emt 0:
00:00]} d6 {[%emt 0:00:36]} 7. Bc4 {[%emt 0:00:04]} Be7 {[%emt 0:00:41]} 8. O-O
{[%emt 0:00:06]} O-O {[%emt 0:01:16]} 9. Qe2 {[%emt 0:00:24]} Bd7 {[%emt 0:00:
00]} 10. exd6 {[%emt 0:10:10]} Bxd6 {[%emt 0:00:00]} 11. Bg5 {[%emt 0:00:14]}
Qc7 {[%emt 0:02:41]} 12. Bxd5 {[%emt 0:01:10]} exd5 {[%emt 0:00:18]} 13. Nc3 {
[%emt 0:06:25]} Re8 {[%emt 0:06:21]} 14. Qd3 {[%emt 0:00:00]} Qc4 {[%emt 0:00:
00]} 15. Qxc4 {[%emt 0:00:00]} dxc4 {[%emt 0:00:03]} 16. Nd2 {[%emt 0:04:23]}
Rc8 {[%emt 0:04:20]} 17. Rfc1 {[%emt 0:00:00]} Bf8 {[%emt 0:16:44]} 18. Bf4 {
[%emt 0:15:02]} Nc6 {[%emt 0:08:03]} 19. Nxc4 {[%emt 0:06:44]} Nxd4 {[%emt 0:
00:00]} 20. Ne5 {[%emt 0:00:40]} Be6 {[%emt 0:08:15]} 21. Be3 {[%emt 0:03:29]}
Rxc3 {[%emt 0:00:00]} 22. Bxd4 {[%emt 0:00:32]} Rxc1+ {[%emt 0:00:00]} 23. Rxc1
{[%emt 0:00:12]} Bxa2 {[%emt 0:00:00]} 24. Ra1 {[%emt 0:06:37]} Be6 {[%emt 0:
00:00]} 25. Rxa7 {[%emt 0:02:16]} Rd8 {[%emt 0:00:32]} 26. Nf3 {[%emt 0:00:25]}
Bg4 {[%emt 0:02:39]} 27. Bc3 {[%emt 0:02:47]} b5 {[%emt 0:02:22]} 28. Ra1 {
[%emt 0:03:38]} b4 {[%emt 0:01:43]} 29. Be5 {[%emt 0:02:07]} Rd3 {[%emt 0:00:
00]} 30. Kf1 {[%emt 0:03:08]} Bxf3 {[%emt 0:03:49]} 31. gxf3 {[%emt 0:00:28]}
Rxf3 {[%emt 0:02:25]} 32. Ra8 {[%emt 0:01:37]} Rd3 {[%emt 0:00:46]} 33. Ke2 {
[%emt 0:02:45]} Rd5 {[%emt 0:00:19]} 34. Bf4 {[%emt 0:00:23]} f6 {[%emt 0:00:
00]} 35. Bd2 {[%emt 0:00:38]} Kf7 {[%emt 0:02:39]} 36. Rb8 {[%emt 0:01:07]} Rd4
{[%emt 0:01:11]} 37. f4 {[%emt 0:03:14]} f5 {[%emt 0:02:24]} 38. b3 {[%emt 0:
00:00]} Re4+ {[%emt 0:01:19]} 39. Kf3 {[%emt 0:00:00]} Be7 {[%emt 0:01:46]} 40.
Rb7 {[%emt 0:00:00]} h6 {[%emt 0:03:32]} 41. Be3 {[%emt 0:30:30]} Kg6 {[%emt 0:
00:00]} 42. Bd2 {[%emt 0:01:56]} Kh5 {[%emt 0:00:00]} 43. Rb5 {[%emt 0:00:00]}
g6 {[%emt 0:00:00]} 44. Be3 {[%emt 0:00:00]} Re6 {[%emt 0:00:00]} 45. Bc5 {
[%emt 0:00:00]} Bxc5 {[%emt 0:00:00]} 46. Rxc5 {[%emt 0:00:00]} Rd6 {[%emt 0:
00:00]} 47. Ke3 {[%emt 0:00:00]} Kg4 {[%emt 0:00:00]} 48. Rc4 {[%emt 0:00:00]}
Re6+ {[%emt 0:00:00]} 49. Kd3 {[%emt 0:00:00]} Re4 {[%emt 0:00:00]} 50. Rc6 {
[%emt 0:00:00]} g5 {[%emt 0:00:00]} 0-1

[Event "44th Chess Olympiad Open 2022"]
[Site "Chennai"]
[Date "2022.07.31"]
[Round "3.25"]
[White "Junior, Domingos"]
[Black "Thybo, Jesper Sondergaard"]
[Result "0-1"]
[WhiteElo "2107"]
[BlackElo "2520"]
[Annotator "RC"]
[PlyCount "118"]
[EventDate "2022.??.??"]
[TimeControl "60"]

1. e4 {[%emt 0:05:33]} c5 {[%emt 0:00:32]} 2. c3 {[%emt 0:00:02]} Nf6 {[%emt 0:
00:00]} 3. e5 {[%emt 0:00:02]} Nd5 {[%emt 0:00:06]} 4. d4 {[%emt 0:00:21]} cxd4
{[%emt 0:00:30]} 5. Nf3 {[%emt 0:01:38]} e6 {[%emt 0:00:38]} 6. cxd4 {[%emt 0:
00:00]} b6 {[%emt 0:00:39]} 7. Nc3 {[%emt 0:01:57]} Nxc3 {[%emt 0:04:24]} 8.
bxc3 {[%emt 0:00:02]} Qc7 {[%emt 0:00:11]} 9. Bd2 {[%emt 0:00:38]} Be7 {
[%emt 0:01:15]} 10. Bd3 {[%emt 0:00:18]} Ba6 {[%emt 0:02:48]} 11. Bxa6 {
[%emt 0:02:34]} Nxa6 {[%emt 0:00:05]} 12. Qe2 {[%emt 0:00:08]} Nb8 {[%emt 0:00:
00]} 13. O-O {[%emt 0:00:47]} O-O {[%emt 0:08:26]} 14. Rac1 {[%emt 0:01:54]} d6
{[%emt 0:06:24]} 15. Bf4 {[%emt 0:12:53]} Nc6 {[%emt 0:07:20]} 16. Rfd1 {
[%emt 0:03:51]} d5 {[%emt 0:04:27]} 17. c4 {[%emt 0:05:06]} Qd7 {[%emt 0:00:24]
} 18. Bg5 {[%emt 0:01:39]} Ba3 {[%emt 0:03:12]} 19. Rc2 {[%emt 0:04:33]} dxc4 {
[%emt 0:01:40]} 20. Qxc4 {[%emt 0:03:21]} Nb4 {[%emt 0:01:42]} 21. Rc3 {
[%emt 0:10:39]} Rfc8 {[%emt 0:01:17]} 22. Qb3 {[%emt 0:00:11]} Rxc3 {[%emt 0:
00:00]} 23. Qxc3 {[%emt 0:00:02]} Qa4 {[%emt 0:00:21]} 24. Qb3 {[%emt 0:02:10]}
Qxb3 {[%emt 0:03:31]} 25. axb3 {[%emt 0:03:02]} a5 {[%emt 0:00:55]} 26. Bc1 {
[%emt 0:00:47]} Bxc1 {[%emt 0:01:40]} 27. Rxc1 {[%emt 0:00:03]} b5 {[%emt 0:00:
00]} 28. Nd2 {[%emt 0:08:49]} h6 {[%emt 0:00:45]} 29. Nb1 {[%emt 0:01:19]} Rd8
{[%emt 0:08:19]} 30. Na3 {[%emt 0:03:47]} Rxd4 {[%emt 0:12:52]} 31. Nxb5 {
[%emt 0:00:09]} Rd3 {[%emt 0:00:47]} 32. Nc3 {[%emt 0:02:17]} Nc6 {[%emt 0:00:
00]} 33. f4 {[%emt 0:03:35]} Nd4 {[%emt 0:00:55]} 34. Kf1 {[%emt 0:02:29]} Nxb3
{[%emt 0:00:34]} 35. Rc2 {[%emt 0:00:02]} Nd4 {[%emt 0:04:27]} 36. Rc1 {
[%emt 0:00:15]} Rd2 {[%emt 0:03:42]} 37. Ra1 {[%emt 0:07:23]} Nc2 {[%emt 0:00:
00]} 38. Ra2 {[%emt 0:02:10]} Ne3+ {[%emt 0:01:47]} 39. Kg1 {[%emt 0:00:01]}
Rxa2 {[%emt 0:01:02]} 40. Nxa2 {[%emt 0:00:01]} g5 {[%emt 0:00:39]} 41. fxg5 {
[%emt 0:33:35]} hxg5 {[%emt 0:30:10]} 42. Kf2 {[%emt 0:00:19]} Ng4+ {[%emt 0:
00:00]} 43. Kf3 {[%emt 0:00:01]} Nxe5+ {[%emt 0:00:32]} 44. Ke4 {[%emt 0:00:02]
} f6 {[%emt 0:00:58]} 45. Nc3 {[%emt 0:00:02]} Kf7 {[%emt 0:00:30]} 46. Kd4 {
[%emt 0:00:17]} Ng6 {[%emt 0:01:30]} 47. g3 {[%emt 0:00:28]} g4 {[%emt 0:02:05]
} 48. Kc5 {[%emt 0:00:28]} Ne5 {[%emt 0:00:28]} 49. Kb5 {[%emt 0:00:15]} Nf3 {
[%emt 0:00:12]} 50. Kxa5 {[%emt 0:00:06]} Nxh2 {[%emt 0:00:04]} 51. Kb5 {
[%emt 0:00:06]} Nf1 {[%emt 0:00:59]} 52. Ne2 {[%emt 0:00:13]} e5 {[%emt 0:00:
00]} 53. Kc6 {[%emt 0:00:52]} Ke6 {[%emt 0:00:21]} 54. Kc5 {[%emt 0:00:03]} Nd2
{[%emt 0:04:36]} 55. Kb4 {[%emt 0:00:11]} Kd5 {[%emt 0:00:55]} 56. Kc3 {
[%emt 0:00:03]} Ne4+ {[%emt 0:00:14]} 57. Kd3 {[%emt 0:00:08]} f5 {[%emt 0:00:
00]} 58. Ke3 {[%emt 0:00:25]} Kc4 {[%emt 0:00:53]} 59. Nc1 {[%emt 0:00:02]}
Nxg3 {[%emt 0:00:00]} 0-1

[Event "44th Chess Olympiad Open 2022"]
[Site "Chennai"]
[Date "2022.07.31"]
[Round "3.26"]
[White "Cruz, Cristhian"]
[Black "Masango, Spencer"]
[Result "1-0"]
[WhiteElo "2579"]
[BlackElo "2170"]
[Annotator "RC"]
[PlyCount "65"]
[EventDate "2022.??.??"]
[TimeControl "60"]

1. d4 {[%emt 0:01:55]} Nf6 {[%emt 0:00:13]} 2. c4 {[%emt 0:00:06]} g6 {[%emt 0:
00:00]} 3. Nc3 {[%emt 0:00:35]} d5 {[%emt 0:00:08]} 4. cxd5 {[%emt 0:00:20]}
Nxd5 {[%emt 0:00:07]} 5. e4 {[%emt 0:00:42]} Nxc3 {[%emt 0:00:15]} 6. bxc3 {
[%emt 0:00:03]} Bg7 {[%emt 0:00:09]} 7. Bg5 {[%emt 0:00:10]} O-O {[%emt 0:00:
00]} 8. Rc1 {[%emt 0:02:03]} c5 {[%emt 0:06:36]} 9. d5 {[%emt 0:08:40]} Qa5 {
[%emt 0:05:11]} 10. Qd2 {[%emt 0:02:25]} b5 {[%emt 0:05:11]} 11. Nf3 {[%emt 0:
00:00]} b4 {[%emt 0:08:09]} 12. cxb4 {[%emt 0:00:36]} cxb4 {[%emt 0:01:24]} 13.
Nd4 {[%emt 0:00:36]} e5 {[%emt 0:05:28]} 14. Nb3 {[%emt 0:00:59]} Qb6 {[%emt 0:
00:00]} 15. Be7 {[%emt 0:03:29]} Re8 {[%emt 0:00:57]} 16. Bxb4 {[%emt 0:25:02]}
Bh6 {[%emt 0:05:24]} 17. Qxh6 {[%emt 0:00:05]} Qxb4+ {[%emt 0:00:07]} 18. Nd2 {
[%emt 0:00:02]} Nd7 {[%emt 0:09:05]} 19. Be2 {[%emt 0:03:58]} Nf6 {[%emt 0:00:
00]} 20. Qe3 {[%emt 0:00:41]} Bd7 {[%emt 0:08:25]} 21. f3 {[%emt 0:04:31]} Nh5
{[%emt 0:14:36]} 22. a3 {[%emt 0:06:00]} Qa5 {[%emt 0:02:51]} 23. g3 {[%emt 0:
00:00]} Bh3 {[%emt 0:01:59]} 24. Kf2 {[%emt 0:00:34]} f5 {[%emt 0:02:08]} 25.
exf5 {[%emt 0:04:41]} Bxf5 {[%emt 0:03:42]} 26. g4 {[%emt 0:03:35]} e4 {
[%emt 0:02:19]} 27. fxe4 {[%emt 0:01:44]} Qd8 {[%emt 0:04:20]} 28. gxf5 {
[%emt 0:05:46]} Qh4+ {[%emt 0:00:25]} 29. Kf1 {[%emt 0:00:22]} Nf4 {[%emt 0:00:
00]} 30. Qg3 {[%emt 0:02:40]} Qh6 {[%emt 0:00:20]} 31. h4 {[%emt 0:00:28]} Rac8
{[%emt 0:00:38]} 32. Kf2 {[%emt 0:01:48]} Nh5 {[%emt 0:00:56]} 33. Qg5 {
[%emt 0:00:21]} 1-0